[Event "93rd German Championship 2022"]
[Site "Magdeburg"]
[Date "2022.08.16"]
[Round "4.4"]
[White "Bethke, Richard"]
[Black "Parvanyan, Ashot"]
[Result "0-1"]
[ECO "C50"]
[WhiteElo "2357"]
[BlackElo "2424"]
[Annotator "TA"]
[PlyCount "42"]
[EventDate "2022.08.14"]
[EventType "swiss"]
[EventCountry "GER"]
[SourceTitle "playchess.com"]
[Source "ChessBase"]
[SourceQuality "1"]
[TimeControl "40/5400+30:1800+30"]

{[%evp 9,42,17,18,26,21,0,0,0,19,0,0,0,14,0,0,0,6,0,0,0,0,-76,-85,-190,-191,-201,-197,-327,-298,-355,-336,-432,-452,-570,-561]} 1. e4 {[%emt 0:00:03]} e5 {[%emt 0:02:09]} 2. Nf3 {[%emt 0:00:06]} Nc6 {[%emt 0:00:05]} 3. Bc4 {[%emt 0:00:03]} Bc5 {[%emt 0:00:08]} 4. O-O {[%emt 0:00:04]} Nf6 {[%emt 0:00:40]} 5. d3 {[%emt 0:00:06]} O-O {[%emt 0:00:23]} 6. a4 {[%emt 0:00:04] C50: Hungarian Defence and Giuoco Pianissimo.} a5 {[%emt 0:00:25]} 7. Nbd2 {[%emt 0:01:47]} d6 {[%emt 0:02:12]} 8. c3 {[%emt 0:00:14] The position is equal.} Be6 {[%emt 0:00:47]} 9. Bb5 {[%emt 0:02:30] [#]} Ba7 $146 {[%emt 0:06:31]} ({Predecessor:} 9... Bd7 10. h3 Ne7 11. Bc4 Ng6 12. Re1 c6 13. d4 exd4 14. cxd4 Bb4 15. Qb3 d5 16. exd5 cxd5 17. Bxd5 Nxd5 18. Qxd5 {½-½ (36) Yilmaz,M (2607)-Erdos,V (2621) Chess.com INT 2020}) 10. h3 {[%emt 0:07:09]} Ne7 {[%emt 0:04:56]} 11. d4 {[%emt 0:01:24]} c6 {[%emt 0:02:53]} 12. Bd3 {[%emt 0:01:18]} Ng6 {[%emt 0:00:25]} 13. Re1 {[%emt 0:00:57]} Nh5 {[%emt 0:15:02][%cal Bf6h5,Bh5f4,Bf4g6][%mdl 32]} 14. Nc4 {[%emt 0:05:00]} Nhf4 {[%emt 0:03:24] Against d5} 15. dxe5 {[%emt 0:02:22]} (15. Bf1 $11 {keeps the balance.}) 15... dxe5 $17 {[%emt 0:03:22]} 16. Ncxe5 {[%emt 0:16:06]} (16. Bf1 $17) 16... Nxe5 $19 {[%emt 0:02:15]} ({And not} 16... Qb6 17. Be3 Qxb2 18. Rb1 Qxc3 19. Nxg6 fxg6 20. Bxf4 Rxf4 21. Rxb7 $11) 17. Nxe5 {[%emt 0:00:26] [#]} Qh4 $40 {[%emt 0:01:40][%mdl 128] Black has strong attack.} 18. Qf3 {[%emt 0:15:04] [#]} (18. Bxf4 {is the only way for White.} Bxf2+ 19. Kh1 Bxe1 20. Qf3) 18... Ng6 $1 {[%emt 0:01:58]} 19. Nxc6 {[%emt 0:10:34]} bxc6 {[%emt 0:00:14]} 20. e5 {[%emt 0:00:03]} Bd5 {[%emt 0:04:25]} 21. Qf5 {[%emt 0:01:03]} Qg3 {[%emt 0:02:29] Weighted Error Value: White=0.49/Black=0.02 (flawless)} 0-1

[Event "93rd German Championship 2022"]
[Site "Magdeburg"]
[Date "2022.08.16"]
[Round "4.5"]
[White "Feidt, Jonas"]
[Black "Becker, Michael"]
[Result "1/2-1/2"]
[ECO "A37"]
[WhiteElo "1901"]
[BlackElo "2282"]
[Annotator "TA"]
[PlyCount "155"]
[EventDate "2022.08.14"]
[EventType "swiss"]
[EventCountry "GER"]
[SourceTitle "playchess.com"]
[Source "ChessBase"]
[SourceQuality "1"]
[TimeControl "40/5400+30:1800+30"]

{[%evp 15,155,0,0,0,0,0,0,-13,31,33,33,18,39,16,31,29,32,39,47,18,49,39,162,136,152,106,128,88,98,0,0,-5,22,14,17,-28,13,-108,-62,-78,-75,-125,0,0,0,0,0,0,0,0,16,0,189,71,250,256,256,252,245,222,222,85,86,80,143,79,77,72,93,76,116,0,0,0,0,0,0,0,0,0,0,0,0,0,0,0,0,0,0,0,0,0,0,0,0,0,0,0,0,0,0,0,0,0,0,0,0,0,0,0,0,-8,-17,-17,-15,-31,0,0,0,0,0,0,0,0,0,0,0,0,0,0,0,-8,-8,-8,-8,-8,-8,-8,0,0,0,0]} 1. c4 {[%emt 0:00:05]} c5 {[%emt 0:00:13]} 2. g3 {[%emt 0:00:15]} Nc6 {[%emt 0:00:30]} 3. Bg2 {[%emt 0:00:09]} g6 {[%emt 0:00:21]} 4. Nf3 {[%emt 0:00:15]} Bg7 {[%emt 0:00:11]} 5. Nc3 {[%emt 0:00:06]} d6 {[%emt 0:00:46]} 6. O-O {[%emt 0:00:11]} e5 {[%emt 0:00:12]} 7. a3 {[%emt 0:01:09]} a5 {[%emt 0:00:24]} 8. d3 {[%emt 0:03:11]} Nge7 {[%emt 0:00:24]} 9. Bg5 {[%emt 0:03:44] A37: Symmetrical English vs ...g6: 4 Bg2 Bg7 5 Nf3.} f6 {[%emt 0:05:11]} 10. Bd2 {[%emt 0:00:19]} Be6 {[%emt 0:01:02]} 11. Ne1 {[%emt 0:01:41] [#]} d5 $146 {[%emt 0:07:33]} ({Predecessor:} 11... O-O 12. Nc2 Kh8 13. Ne3 Bg8 14. Ned5 Nxd5 15. Nxd5 a4 16. Nc3 Qa5 17. Nd5 Qd8 18. Nc3 Qa5 19. Nd5 Qd8 {½-½ (19) Di Berardino,D (2471)-Fier,A (2563) Cuiaba 2021}) 12. cxd5 {[%emt 0:01:56]} Nxd5 {[%emt 0:00:14]} 13. Qb3 {[%emt 0:10:16][%csl LRb7,LRd5][%cal Rg2d5]} Nc7 {[%emt 0:08:30]} (13... Nd4 {is more complex.} 14. Qxb7 Nc7 15. Na4 Nxe2+ 16. Kh1 O-O) 14. Bxc6+ {[%emt 0:20:12]} (14. Qb6 {with more complications.} O-O 15. Bxc6 bxc6 16. Qxc5 Bh3 17. Ng2) 14... bxc6 {[%emt 0:00:23]} 15. Qb6 {[%emt 0:00:19][%csl LRc5,LRc6]} O-O {[%emt 0:12:22]} 16. Qxc5 {[%emt 0:02:48]} Ra6 {[%emt 0:06:23]} 17. Nf3 {[%emt 0:02:59]} (17. Ne4 {looks sharper.} Nb5 18. Nf3 f5 19. Neg5) 17... Rf7 {[%emt 0:01:17]} 18. Ne4 {[%emt 0:04:13]} Nd5 {[%emt 0:02:43]} (18... Bf8 $14 19. Qc2 a4) 19. Qc2 {[%emt 0:03:46]} Bg4 {[%emt 0:02:53]} 20. Nc5 {[%emt 0:02:53]} (20. Qc4 $142 Bc8 21. Rfc1) 20... Ra8 $16 {[%emt 0:01:11]} 21. Rfd1 {[%emt 0:06:46]} Bf8 {[%emt 0:02:01]} 22. Be3 {[%emt 0:08:50]} ({White should try} 22. Rac1 $16) 22... Nxe3 $11 {[%emt 0:02:46]} 23. fxe3 {[%emt 0:00:12]} Qd5 {[%emt 0:00:16]} 24. Ne4 {[%emt 0:01:59]} Rb8 {[%emt 0:05:22]} 25. Nc3 {[%emt 0:07:57]} Qe6 {[%emt 0:06:55][%mdl 1024] Black has compensation.} 26. d4 {[%emt 0:03:56]} (26. Rf1 $11) 26... Bh6 {[%emt 0:02:04]} (26... exd4 $17 27. exd4 Rfb7) 27. e4 $15 {[%emt 0:04:10]} Be3+ {[%emt 0:02:30]} 28. Kg2 {[%emt 0:00:16]} (28. Kh1 $142) 28... Bh3+ {[%emt 0:16:06] A strong pair of Bishops.} (28... Bxf3+ $17 29. exf3 exd4) 29. Kh1 $11 {[%emt 0:00:08]} exd4 {[%emt 0:00:16]} 30. Nxd4 {[%emt 0:00:59]} Qc4 {[%emt 0:01:12]} 31. Nf3 {[%emt 0:00:51]} Re7 {[%emt 0:01:38]} 32. Rab1 {[%emt 0:01:25]} f5 {[%emt 0:02:16][%cal Rf5e4]} 33. Qd3 {[%emt 0:02:11]} Qc5 {[%emt 0:01:13]} (33... Qxd3 $11 {and Black has nothing to worry.} 34. Rxd3 fxe4 35. Rxe3 exf3 36. Rxe7 f2) 34. e5 {[%emt 0:02:33]} (34. b4 $1 $18 {[%cal Rb4c5] is the precise move to win.} axb4 35. axb4) 34... Rbe8 $2 {[%emt 0:01:24]} (34... Bg4 $16) 35. b4 $1 $18 {[%emt 0:01:04]} ({Less strong is} 35. Na4 Qa7 $16) 35... axb4 {[%emt 0:01:22]} 36. axb4 {[%emt 0:00:04]} Qb6 {[%emt 0:00:24]} 37. Na4 {[%emt 0:01:33]} Qa7 {[%emt 0:00:07] [#]} 38. Nc5 {[%emt 0:01:34] Really sharp!} (38. Ra1 $1 $18) 38... Bxc5 $16 {[%emt 0:01:47]} 39. Qc4+ {[%emt 0:00:06]} ({Of course not} 39. bxc5 $6 Qxc5 40. Qd4 Qxd4 41. Rxd4 Bg4 $11) 39... Kg7 {[%emt 0:00:42] [#]} (39... Kh8 $142) 40. bxc5 {[%emt 0:02:53]} (40. Ra1 $142 $1 {[%cal Ra1a7]} Qb8 41. Qxc5 (41. bxc5 Bg4 $14)) 40... Bg4 {[%emt 0:01:44]} 41. Qc3 {[%emt 0:11:31] Threatens to win with e6+. White is more active.} Qa2 {[%emt 0:01:23]} 42. Rb2 {[%emt 0:01:12]} Qa4 {[%emt 0:03:38]} 43. Rdb1 {[%emt 0:04:04]} ({White should play} 43. Rd6 $16) 43... Qe4 $11 {[%emt 0:01:00]} 44. Kg1 {[%emt 0:08:40]} Bxf3 {[%emt 0:02:21][%mdl 64] Remove Defender} 45. exf3 {[%emt 0:00:10]} Qxe5 {[%emt 0:00:19]} 46. Qxe5+ {[%emt 0:00:29]} Rxe5 {[%emt 0:00:04][%mdl 4096] Endgame KRR-KRR} 47. Rc2 {[%emt 0:00:18]} Re1+ {[%emt 0:03:17]} 48. Rxe1 {[%emt 0:00:07]} Rxe1+ {[%emt 0:00:07] KR-KR} 49. Kf2 {[%emt 0:00:08]} Re5 {[%emt 0:00:13]} 50. f4 {[%emt 0:01:34]} Rd5 {[%emt 0:00:07]} 51. Kf3 {[%emt 0:00:23]} Kf6 {[%emt 0:00:38]} 52. Ke3 {[%emt 0:01:23]} h6 {[%emt 0:01:54]} 53. h4 {[%emt 0:02:03]} g5 {[%emt 0:01:06]} 54. hxg5+ {[%emt 0:00:39]} hxg5 {[%emt 0:00:06]} 55. fxg5+ {[%emt 0:01:12]} Kxg5 {[%emt 0:00:05]} 56. Kf3 {[%emt 0:00:11]} Rd3+ {[%emt 0:01:36]} 57. Kg2 {[%emt 0:00:03]} Kf6 {[%emt 0:01:35]} 58. Kf2 {[%emt 0:02:56]} Kg5 {[%emt 0:02:04]} 59. Rc4 {[%emt 0:00:35]} Rd5 {[%emt 0:02:09]} 60. Kf3 {[%emt 0:00:10]} Kf6 {[%emt 0:00:26]} 61. Kf4 {[%emt 0:00:35]} Rd1 {[%emt 0:00:11]} 62. g4 {[%emt 0:01:14]} fxg4 {[%emt 0:01:17]} 63. Kxg4 {[%emt 0:00:11]} Ke5 {[%emt 0:00:13] White must now prevent ...Rd4+.} 64. Kf3 $1 {[%emt 0:00:17]} Kd5 {[%emt 0:00:58]} 65. Rc2 {[%emt 0:00:09]} Rh1 {[%emt 0:00:35]} 66. Ke3 {[%emt 0:00:52] The position is equal.} Ra1 {[%emt 0:03:06]} 67. Kd3 {[%emt 0:00:41]} Ra3+ {[%emt 0:00:08]} 68. Kd2 {[%emt 0:00:30]} Kd4 {[%emt 0:00:12]} 69. Rb2 {[%emt 0:00:48]} Rd3+ {[%emt 0:00:12]} 70. Kc2 {[%emt 0:01:11]} Rc3+ {[%emt 0:00:30]} 71. Kd2 {[%emt 0:00:03]} Rxc5 {[%emt 0:00:22]} 72. Rb8 {[%emt 0:00:43]} Rh5 {[%emt 0:00:57]} 73. Rg8 {[%emt 0:00:38]} Rh2+ {[%emt 0:00:31]} 74. Kc1 {[%emt 0:00:14]} c5 {[%emt 0:00:24][%cal Bc6c5,Bc5c4,Bc4c3][%mdl 32]} 75. Rg7 {[%emt 0:00:37]} c4 {[%emt 0:00:36]} 76. Rg3 {[%emt 0:00:24]} c3 {[%emt 0:01:11]} 77. Rg8 {[%emt 0:00:14]} Kd3 {[%emt 0:01:20] ( -> ...Rh1+)} 78. Rd8+ {Black defended with fortune.  Weighted Error Value: White=0.25 (precise) /Black=0.33} 1/2-1/2

[Event "93rd German Championship 2022"]
[Site "Magdeburg"]
[Date "2022.08.16"]
[Round "4.6"]
[White "Poetsch, Hagen"]
[Black "Richter, Nils"]
[Result "1-0"]
[ECO "B12"]
[WhiteElo "2500"]
[BlackElo "2328"]
[Annotator "TA"]
[PlyCount "45"]
[EventDate "2022.08.14"]
[EventType "swiss"]
[EventCountry "GER"]
[SourceTitle "playchess.com"]
[Source "ChessBase"]
[SourceQuality "1"]
[TimeControl "40/5400+30:1800+30"]

{[%evp 13,45,11,20,24,20,10,29,3,18,0,44,37,56,38,28,0,73,71,118,89,137,137,138,142,142,153,154,152,291,282,282,275,270,263]} 1. e4 {[%emt 0:00:03]} c6 {[%emt 0:00:23]} 2. d4 {[%emt 0:00:07]} d5 {[%emt 0:00:08]} 3. e5 {[%emt 0:00:08]} c5 {[%emt 0:00:18]} 4. c3 {[%emt 0:00:20]} Nc6 {[%emt 0:00:38]} 5. Be2 {[%emt 0:00:16]} Bf5 {[%emt 0:04:36]} 6. Nf3 {[%emt 0:00:24]} e6 {[%emt 0:00:27]} 7. O-O {[%emt 0:00:10]} Bg6 {[%emt 0:01:28]} 8. a3 {[%emt 0:00:42] B12: Caro-Kann: Advance Variation.} cxd4 {[%emt 0:08:03]} 9. cxd4 {[%emt 0:00:20]} Nge7 {[%emt 0:00:08]} 10. Nc3 {[%emt 0:01:24] White has an edge.} Nf5 {[%emt 0:01:56]} 11. h3 {[%emt 0:07:11] [#]} h5 $146 {[%emt 0:03:35]} ({Predecessor:} 11... a6 12. b3 Be7 13. Bb2 b5 14. a4 b4 15. Na2 O-O 16. Bd3 Qb6 17. Rc1 Rfc8 {½-½ (25) Babic,D (2475)-Mercadal Benejam,J (2402) ICCF email 2018}) 12. Bd3 {[%emt 0:08:33]} h4 {[%emt 0:06:58]} 13. Bg5 {[%emt 0:06:42]} Be7 {[%emt 0:00:33]} 14. Bxe7 {[%emt 0:00:10]} Qxe7 {[%emt 0:01:39]} (14... Ncxe7 $11 {remains equal.} 15. Qa4+ Kf8) 15. Qd2 $16 {[%emt 0:13:17]} O-O-O {[%emt 0:07:01]} (15... O-O $142) 16. Bb5 {[%emt 0:03:54]} Na5 {[%emt 0:11:00]} ({Better is} 16... Qc7) 17. Ne2 {[%emt 0:11:11][%cal Bc3e2,Be2f4,Bf4d3][%mdl 32]} ({Much worse is} 17. Nxd5 $6 Rxd5 18. Qxa5 Kb8 $11) 17... Nc4 {[%emt 0:01:24]} 18. Rac1 {[%emt 0:01:33] Hoping for b3.} Kb8 {[%emt 0:00:29]} 19. Bxc4 {[%emt 0:00:08]} dxc4 {[%emt 0:00:07] [#]} 20. Nf4 $1 {[%emt 0:08:46]} ({But not} 20. Rxc4 Bh5 $14) 20... Nxd4 {[%emt 0:12:23]} (20... Bh5 $16 {might work better.} 21. Nxh5 (21. Rxc4 Bxf3 22. gxf3 Qg5+ 23. Kh1 Rd7 $11) 21... Rxh5 22. Rxc4 Rhh8) 21. Nxd4 $18 {[%emt 0:00:12] White has a decisive advantage.} Bd3 {[%emt 0:00:07]} 22. Nxd3 {[%emt 0:02:07]} Rxd4 {[%emt 0:00:27]} 23. Qb4 {[%emt 0:00:19] Weighted Error Value: White=0.09 (flawless) /Black=0.29 (precise)} 1-0

[Event "93rd German Championship 2022"]
[Site "Magdeburg"]
[Date "2022.08.16"]
[Round "4.7"]
[White "Keller, Peter"]
[Black "Vogel, Roven"]
[Result "0-1"]
[ECO "B52"]
[WhiteElo "2377"]
[BlackElo "2459"]
[Annotator "TA"]
[PlyCount "90"]
[EventDate "2022.08.14"]
[EventType "swiss"]
[EventCountry "GER"]
[SourceTitle "playchess.com"]
[Source "ChessBase"]
[SourceQuality "1"]
[TimeControl "40/5400+30:1800+30"]

{[%evp 9,90,22,16,0,2,0,21,12,14,0,0,0,0,0,0,-22,-16,-31,-6,-12,0,0,8,0,9,4,21,15,27,25,25,14,22,11,0,0,0,0,0,-18,0,-67,-74,-95,-85,-152,-107,-118,-104,-108,-97,-160,-163,-237,-169,-259,-267,-245,-235,-308,-250,-326,-307,-304,-304,-345,-249,-252,-251,-265,-258,-305,-297,-263,-257,-413,-412,-400,-415,-404,-389,-1007,-733]} 1. e4 {[%emt 0:00:03]} c5 {[%emt 0:00:12]} 2. Nf3 {[%emt 0:00:06]} d6 {[%emt 0:00:09]} 3. Bb5+ {[%emt 0:00:11]} Bd7 {[%emt 0:00:23]} 4. c4 {[%emt 0:00:08]} a6 {[%emt 0:02:21]} 5. Bxd7+ {[%emt 0:00:26]} Nxd7 {[%emt 0:00:27]} 6. Nc3 {[%emt 0:00:12] B52: Sicilian: Moscow Variation with 3...Bd7.} Ngf6 {[%emt 0:03:27]} 7. O-O {[%emt 0:05:25]} Rc8 {[%emt 0:02:16]} 8. d3 {[%emt 0:00:47] The position is equal.} e6 {[%emt 0:01:07] [#]} 9. Kh1 $146 {[%emt 0:04:40]} ({Predecessor:} 9. a3 g6 10. Bf4 Qc7 11. Qd2 h6 12. h3 Bg7 13. Rac1 e5 14. Be3 Nf8 15. b4 {1-0 (21) Govedarica,R (2289)-Martin Duque,J (2449) Veliko Gradiste 2021}) 9... Be7 {[%emt 0:08:51][%cal Bf8e7,Be7f6,Bf6d4][%mdl 32]} 10. Ng1 {[%emt 0:01:24]} Ne5 {[%emt 0:00:57]} 11. f4 {[%emt 0:06:33]} Nc6 {[%emt 0:01:11]} 12. Nge2 {[%emt 0:10:58]} O-O {[%emt 0:01:19]} 13. Qe1 {[%emt 0:02:12]} Nd7 {[%emt 0:16:43]} 14. Qg3 {[%emt 0:08:42]} Bf6 {[%emt 0:03:28]} 15. Qh3 {[%emt 0:08:06]} Bd4 {[%emt 0:13:17]} 16. Bd2 {[%emt 0:09:27]} Qe7 {[%emt 0:03:29]} 17. Rab1 {[%emt 0:05:50]} Bf6 {[%emt 0:11:17]} 18. a3 {[%emt 0:01:52]} Rb8 {[%emt 0:07:14]} 19. b4 {[%emt 0:04:04]} cxb4 {[%emt 0:02:15]} 20. axb4 {[%emt 0:00:20]} b5 {[%emt 0:00:15]} 21. c5 {[%emt 0:08:02]} Bxc3 {[%emt 0:02:52]} (21... dxc5 {looks sharper.} 22. e5 cxb4 23. Ne4 Bxe5 24. fxe5 Ndxe5 25. Qg3 f6) 22. cxd6 {[%emt 0:00:04]} Qxd6 {[%emt 0:00:06]} 23. Bxc3 {[%emt 0:00:04]} f6 {[%emt 0:00:43]} 24. Qg4 {[%emt 0:02:49]} Rf7 {[%emt 0:00:49]} 25. d4 {[%emt 0:05:42]} (25. Rfc1 $11) 25... f5 $15 {[%emt 0:00:49]} 26. exf5 {[%emt 0:00:34]} exf5 {[%emt 0:00:48]} 27. Qg5 {[%emt 0:02:32]} (27. Qh3 $142) 27... h6 {[%emt 0:02:44]} 28. Qg3 {[%emt 0:00:50]} Nf6 {[%emt 0:01:39] Black is more active.} 29. d5 {[%emt 0:00:37]} Qxd5 {[%emt 0:00:46]} ({Not} 29... Nxd5 30. Be5 Nxe5 31. fxe5 $15) 30. Bxf6 {[%emt 0:00:53]} (30. Rfd1 $142 Qe6 31. Qf3) 30... Rxf6 $17 {[%emt 0:00:05]} 31. Rbd1 {[%emt 0:00:12]} (31. Qa3 $142) 31... Qe6 {[%emt 0:01:44]} 32. Rfe1 {[%emt 0:00:17]} (32. Nd4 $142 Qc4 33. Nxc6 Rxc6 34. Qd3) 32... Nxb4 $19 {[%emt 0:00:44]} 33. Nd4 {[%emt 0:00:42]} Qf7 {[%emt 0:00:06]} 34. Nf3 {[%emt 0:01:08] [#] And now Ne5 would win.} Nc6 {[%emt 0:00:12]} 35. Ne5 {[%emt 0:02:37]} Nxe5 {[%emt 0:00:10]} 36. fxe5 {[%emt 0:00:02]} Re6 {[%emt 0:00:26]} 37. Rd5 {[%emt 0:00:36]} Rbe8 {[%emt 0:01:14]} 38. h3 {[%emt 0:00:30]} Rg6 {[%emt 0:02:38]} 39. Qd3 {[%emt 0:00:23] [#]} Rg3 $3 {[%emt 0:00:29][%mdl 512]} 40. Qd4 {[%emt 0:01:36]} (40. Qd2 f4) 40... f4 {[%emt 0:01:36] Hoping for ...f3.} 41. Kh2 {[%emt 0:30:23]} Re3 {[%emt 0:14:05]} 42. Rc1 {[%emt 0:00:00]} (42. Rxe3 fxe3 43. Rd8) 42... Re2 {[%emt 0:01:03] ( -> ...Qg6)} 43. Rd7 {[%emt 0:00:00]} Qg6 {[%emt 0:00:41][%csl Ge2][%cal Rg6g2]} 44. Qd5+ {[%emt 0:00:00]} Kh7 {[%emt 0:01:03]} 45. Kh1 $2 {[%emt 0:00:00]} (45. Qf3 R8xe5 46. Rcc7 Qg3+ 47. Qxg3 fxg3+ 48. Kxg3 Rg5+ 49. Kf4) 45... R8xe5 {[%emt 0:01:20] Weighted Error Value: White=0.33/Black=0.10 (very precise)} 0-1

[Event "93rd German Championship 2022"]
[Site "Magdeburg"]
[Date "2022.08.16"]
[Round "4.8"]
[White "Braun, Georg"]
[Black "Colpe, Malte"]
[Result "1-0"]
[ECO "A14"]
[WhiteElo "2398"]
[BlackElo "2363"]
[Annotator "TA"]
[PlyCount "125"]
[EventDate "2022.08.14"]
[EventType "swiss"]
[EventCountry "GER"]
[SourceTitle "playchess.com"]
[Source "ChessBase"]
[SourceQuality "1"]
[TimeControl "40/5400+30:1800+30"]

{[%evp 12,125,9,3,12,0,12,0,0,-5,10,0,0,0,0,0,0,0,0,0,0,-55,0,0,19,0,4,-28,-35,-55,-47,-40,-23,-26,0,-26,0,0,0,0,0,-39,-34,-44,-42,-32,0,-45,-46,-83,-67,-59,-60,-78,0,0,0,0,0,0,0,0,0,-41,6,8,8,6,25,25,34,15,15,0,0,0,22,22,26,44,47,42,45,33,41,22,22,22,22,22,22,19,22,22,137,22,136,136,136,136,2592,2722,2435,1991,1723,1539,29975,29976,29976,29977,29977,29978,29977,29979,29971,1694]} 1. c4 {[%emt 0:00:10]} e6 {[%emt 0:00:08]} 2. g3 {[%emt 0:00:29]} d5 {[%emt 0:00:18]} 3. Bg2 {[%emt 0:00:10]} Nf6 {[%emt 0:01:03]} 4. Nf3 {[%emt 0:00:10]} Be7 {[%emt 0:00:44]} 5. O-O {[%emt 0:00:24]} O-O {[%emt 0:00:10]} 6. b3 {[%emt 0:00:58]} d4 {[%emt 0:00:44]} 7. e3 {[%emt 0:00:13]} c5 {[%emt 0:00:12] A14: English Opening: 1...e6 with b3 by White.} 8. exd4 {[%emt 0:00:14]} cxd4 {[%emt 0:00:08]} 9. Re1 {[%emt 0:00:12]} Nc6 {[%emt 0:00:53] The position is equal.} 10. d3 {[%emt 0:00:50]} Bb4 {[%emt 0:03:14]} 11. Re2 {[%emt 0:07:00]} a5 {[%emt 0:02:12]} 12. Na3 {[%emt 0:02:10] [#]} Nd7 $146 {[%emt 0:13:30]} ({Predecessor:} 12... e5 13. Nb5 Bg4 14. h3 Bh5 15. g4 Nxg4 16. hxg4 Bxg4 17. Nh2 Bxe2 18. Qxe2 a4 {1-0 (41) Nigalidze,G (2508)-Khukhashvili,S (2341) Tbilisi 2019}) 13. Nb5 {[%emt 0:05:15]} e5 {[%emt 0:00:49] Prevents Bf4.} 14. a3 {[%emt 0:01:58]} Be7 {[%emt 0:02:25]} 15. Rb1 {[%emt 0:06:23]} f6 {[%emt 0:03:04]} 16. Qd2 {[%emt 0:02:50]} ({Better is} 16. Reb2 $11) 16... Nb6 {[%emt 0:10:43]} ({Black should play} 16... Nc5 $15) 17. Re1 $11 {[%emt 0:03:44]} Kh8 {[%emt 0:02:16]} 18. Qc2 {[%emt 0:02:36]} Bg4 {[%emt 0:04:12]} 19. Bd2 {[%emt 0:03:04]} Qd7 {[%emt 0:02:06]} 20. Kh1 {[%emt 0:13:27]} Bh3 {[%emt 0:12:32]} 21. Qd1 {[%emt 0:02:57]} Bxg2+ {[%emt 0:05:25]} 22. Kxg2 {[%emt 0:00:05]} Rae8 {[%emt 0:03:22]} 23. Kg1 {[%emt 0:05:42]} Bd8 {[%emt 0:01:37]} 24. b4 {[%emt 0:01:05]} axb4 {[%emt 0:00:32]} 25. Bxb4 {[%emt 0:00:09]} Nxb4 {[%emt 0:01:02]} 26. Rxb4 {[%emt 0:00:49]} Be7 {[%emt 0:05:49]} 27. Rb1 {[%emt 0:01:45][%cal Ob5d4]} Bc5 {[%emt 0:02:50]} 28. Nd2 {[%emt 0:06:20]} Ra8 {[%emt 0:01:11]} 29. Qf3 {[%emt 0:04:01]} (29. Ne4 $5 {[%cal Re4c5]} Be7 30. Nbd6 $11) 29... Na4 {[%emt 0:01:21]} 30. Rec1 {[%emt 0:07:23][%cal Be1c1,Bc1c3,Bc3b3][%mdl 32]} Rfd8 {[%emt 0:05:36]} 31. Nb3 {[%emt 0:03:02]} Bf8 {[%emt 0:01:45]} 32. Ra1 {[%emt 0:01:51]} Nc3 {[%emt 0:03:12]} (32... Ra6 $17) 33. Nxc3 {[%emt 0:08:46]} dxc3 {[%emt 0:00:08]} 34. Rxc3 {[%emt 0:00:22]} Rxa3 {[%emt 0:02:19]} 35. Rxa3 {[%emt 0:00:38]} Bxa3 {[%emt 0:00:05]} 36. Nc1 {[%emt 0:01:16]} Bc5 {[%emt 0:02:14]} 37. Kg2 {[%emt 0:01:03]} h6 {[%emt 0:01:39]} (37... b6 $15) 38. Rb3 {[%emt 0:01:12]} b6 {[%emt 0:00:27]} 39. Rb5 {[%emt 0:01:03]} Ba3 {[%emt 0:04:24]} (39... Kg8 {keeps more tension.} 40. Nb3 Qxd3 41. Nxc5 bxc5 42. Rxc5 Rd7) 40. Rd5 {[%emt 0:00:56]} Qc7 {[%emt 0:01:03]} 41. Rxd8+ {[%emt 0:31:20]} Qxd8 $14 {[%emt 0:30:07][%mdl 4096] Endgame KQB-KQN} 42. Na2 {[%emt 0:04:54][%cal Od3d4]} Bc5 {[%emt 0:01:02]} 43. Nc3 {[%emt 0:01:00]} Qd4 {[%emt 0:01:18]} (43... Bxf2 $5 44. Qxf2 Qxd3 $11) 44. Ne4 {[%emt 0:00:00]} Kg8 {[%emt 0:00:00]} 45. h4 {[%emt 0:00:00]} Bf8 {[%emt 0:00:00]} 46. h5 {[%emt 0:00:00]} Be7 {[%emt 0:00:00]} 47. g4 {[%emt 0:00:00]} (47. Qf5 {feels hotter.} Qd8 48. Nc3 Qd4 49. Nd5) 47... Qd7 {[%emt 0:00:00]} 48. Ng3 {[%emt 0:00:00]} (48. Nc3 {is interesting.} Kf7 49. Qf5 Qc6+ 50. f3) 48... b5 {[%emt 0:00:00]} 49. cxb5 {[%emt 0:00:00]} Qxb5 {[%emt 0:00:00]} 50. Nf5 {[%emt 0:00:00]} Qd7 {[%emt 0:00:00]} 51. Qa8+ {[%emt 0:00:00]} Bf8 {[%emt 0:00:00]} 52. Qe4 {[%emt 0:00:00]} Be7 {[%emt 0:00:00]} (52... Kh8 $11) 53. Nh4 {[%emt 0:00:00]} ({White should try} 53. Qc4+ $16 Kf8 54. Nh4) 53... f5 {[%emt 0:00:00]} (53... Ba3 $11) 54. Nxf5 $16 {[%emt 0:00:00] [#] And now f4 would win.} Bf6 {[%emt 0:00:00]} 55. Kf3 {[%emt 0:00:00] White is more active.} Qb5 $2 {[%emt 0:01:09][%mdl 8192] A mistake that costs the game.} (55... Kh8 $16 56. Kg2 Kg8) 56. Qc4+ $18 {[%emt 0:00:00]} Qxc4 {[%emt 0:00:07]} 57. dxc4 {[%emt 0:00:00][%cal Bd3c4,Bc4c5,Bc5c6][%mdl 32] KB-KN} Kf7 {[%emt 0:00:34]} 58. c5 {[%emt 0:00:00]} g6 {[%emt 0:00:20]} 59. hxg6+ {[%emt 0:00:00] White mates.} Kxg6 {[%emt 0:00:07]} 60. c6 {[%emt 0:00:00]} Bd8 {[%emt 0:00:06] [#]} 61. Ne7+ $1 {[%emt 0:00:00][%mdl 512]} Kg5 {[%emt 0:00:41]} (61... Kf7 62. Nd5) 62. Nd5 {[%emt 0:00:00]} e4+ {[%emt 0:00:15]} 63. Kxe4 {Weighted Error Value: White=0.13 (very precise) /Black=0.31} (63. Kg3 $142 e3 64. fxe3 Kg6 65. c7 Bxc7+ 66. Nxc7 Kf6 67. Kh4 Kg6 68. Kg3) 1-0